bitfinex-derivatives/quotes_BNBF0:USTF0_20250710
["timestamp","ask_amount","ask_price","bid_price","bid_amount"]
[1752188713758,0.25371921,685.97,685.5,0.97532065]
[1752188713956,0.25371921,685.97,685.51,0.97532065]
[1752188714156,0.25371921,685.97,685.52,0.97532065]
[1752188714358,0.25371921,685.97,685.53,0.97532065]
[1752188714557,0.25371921,685.97,685.54,0.97532065]
[1752188714857,0.25371921,685.97,685.38,1.471]
[1752188715060,0.25371921,685.97,685.39,0.97534495]
[1752188715266,0.25371921,685.97,685.4,0.97534495]
[1752188715459,0.25371921,685.97,685.41,0.97534495]
[1752188715760,0.25371921,685.97,685.42,0.97534495]
[1752188715960,0.25371921,685.97,685.43,0.97534495]
[1752188716161,0.25371921,685.97,685.44,0.97534495]
[1752188716363,0.25371921,685.97,685.45,0.97534495]
[1752188716563,0.25371921,685.97,685.46,0.97534495]
[1752188716762,0.25371921,685.97,685.47,0.97534495]
[1752188716964,0.25371921,685.97,685.48,0.97534495]
[1752188717261,0.25371921,685.97,685.49,0.97534495]
[1752188717461,0.25371921,685.97,685.5,0.97534495]
[1752188717666,0.25371921,685.97,685.51,0.97534495]
[1752188717863,0.25371921,685.97,685.52,0.97534495]
[1752188718067,0.25371921,685.97,685.53,0.97534495]
[1752188718264,0.25371921,685.97,685.54,0.97534495]
[1752188718462,0.25371921,685.97,685.55,0.97534495]
[1752188718766,0.25371921,685.97,685.38,1.471]
[1752188718968,0.25371921,685.97,685.39,0.97603758]
[1752188719165,0.25371921,685.97,685.4,0.97603758]
[1752188719371,0.25371921,685.97,685.41,0.97603758]
[1752188719573,0.25371921,685.97,685.42,0.97603758]
[1752188719767,0.25371921,685.97,685.43,0.97603758]
[1752188719966,0.25371921,685.97,685.44,0.97603758]
[1752188720171,0.25371921,685.97,685.45,0.97603758]
[1752188720371,1.30453401,686.13,685.46,0.97603758]
[1752188720569,0.25369147,686.05,685.47,0.97603758]
[1752188720769,0.25369147,686.05,685.29,0.97858353]
[1752188720770,0.25369147,686.05,685.48,0.97603758]
[1752188720971,0.25369147,686.05,685.49,0.97603758]
[1752188721173,0.25369147,686.05,685.5,0.97603758]
[1752188721370,0.25369147,686.05,685.29,0.97858353]
[1752188721371,0.25369147,686.05,685.51,0.97603758]
[1752188721669,0.25369147,686.05,685.52,0.97603758]
[1752188721870,0.25369147,686.05,685.53,0.97603758]
[1752188722072,0.25369147,686.05,685.28,0.97858353]
[1752188722073,0.25369147,686.05,685.54,0.97603758]
[1752188722274,0.25369147,686.05,685.55,0.97603758]
[1752188722474,0.25369147,686.05,685.28,0.97858353]
[1752188722475,0.25369147,686.05,685.56,0.97603758]
[1752188722675,0.25369147,686.05,685.57,0.97603758]
[1752188722871,0.25369147,686.05,685.58,0.97603758]
[1752188723073,0.25369147,686.05,685.59,0.97603758]
[1752188723270,0.25369147,686.05,685.6,0.97603758]
[1752188723474,0.25369147,686.05,685.61,0.97603758]
[1752188723672,0.25369147,686.05,685.62,0.97603758]
[1752188723971,0.25369147,686.05,685.63,0.97603758]
[1752188724179,0.25369147,686.05,685.45,1.218]
[1752188724372,0.25369147,686.05,685.46,0.97591727]
[1752188724570,0.25369147,686.05,685.47,0.97591727]
[1752188724775,0.25369147,686.05,685.48,0.97591727]
[1752188724971,0.25369147,686.05,685.49,0.97591727]
[1752188725175,0.25369147,686.05,685.5,0.97591719]
[1752188725472,0.25369147,686.05,685.51,0.97591719]
[1752188725672,0.25369147,686.05,685.52,0.97591719]
[1752188725894,0.25369147,686.05,685.53,0.97591719]
[1752188726172,0.25369147,686.05,685.54,0.97591719]
[1752188726372,0.25369147,686.05,685.55,0.97591719]
[1752188726673,0.25369147,686.05,685.56,0.97591719]
[1752188726875,0.25369147,686.05,685.57,0.97591719]
[1752188727071,0.25369147,686.05,685.58,0.97591719]
[1752188727272,0.25369147,686.05,685.59,0.97591719]
[1752188727477,0.25369147,686.05,685.6,0.97591719]
[1752188727677,0.25369147,686.05,685.45,1.218]
[1752188727678,0.25369147,686.05,685.61,0.97591719]
[1752188727975,0.25369147,686.05,685.62,0.97591719]
[1752188728172,0.25369147,686.05,685.63,0.97591719]
[1752188728471,0.25369147,686.05,685.64,0.97591719]
[1752188728678,0.25369147,686.05,685.65,0.97591719]
[1752188728994,0.25369147,686.05,685.45,1.218]
[1752188729175,0.25369147,686.05,685.46,0.97575152]
[1752188729476,0.25369147,686.05,685.47,0.97575152]
[1752188729674,0.25369147,686.05,685.48,0.97575152]
[1752188729875,0.25369147,686.05,685.49,0.97575152]
[1752188730073,0.25369147,686.05,685.5,0.97575152]
[1752188730377,0.25369147,686.05,685.45,1.218]
[1752188730378,0.25369147,686.05,685.51,0.97575152]
[1752188730677,0.25369147,686.05,685.52,0.97575152]
[1752188730873,0.25369147,686.05,685.53,0.97575152]
[1752188731074,0.25369147,686.05,685.54,0.97575152]
[1752188731273,0.25369147,686.05,685.55,0.97575152]
[1752188731476,0.25369147,686.05,685.56,0.97575152]
[1752188731776,0.25369147,686.05,685.57,0.97575152]
[1752188731976,0.25369147,686.05,685.58,0.97575152]
[1752188732174,0.25369147,686.05,685.59,0.97575152]
[1752188732478,0.25369147,686.05,685.6,0.97575152]
[1752188732778,0.25369147,686.05,685.61,0.97575152]
[1752188733077,0.25369147,686.05,685.62,0.97575152]
[1752188733277,0.25369147,686.05,685.45,1.218]
[1752188733278,0.25369147,686.05,685.63,0.97575152]
[1752188733476,0.25369147,686.05,685.64,0.97575152]
[1752188733678,0.25369147,686.05,685.65,0.97575152]
[1752188733978,0.25369147,686.05,685.66,0.97575152]
[1752188734177,0.25369147,686.05,685.67,0.97575152]
[1752188734378,0.25369147,686.05,685.68,0.97575152]
[1752188734579,0.25369147,686.05,685.69,0.97575152]
[1752188734778,0.25369147,686.05,685.45,1.218]
[1752188734983,1.30453401,686.02,685.46,0.97557497]
[1752188735191,1.30453401,686.02,685.47,0.97557497]
[1752188735384,1.30453401,685.96,685.45,1.218]
[1752188736085,1.30453401,686.01,685.46,0.97573674]
[1752188736381,1.30453401,686.02,685.47,0.97573674]
[1752188736580,1.30453401,686.02,685.48,0.97573674]
[1752188736783,1.30453401,686.02,685.49,0.97573674]
[1752188736984,1.30453401,686.02,685.5,0.97573674]
[1752188737182,1.30453401,686.02,685.51,0.97573674]
[1752188737385,1.30453401,686.02,685.52,0.97573674]
[1752188737579,1.30453401,686.03,685.53,0.97573674]
[1752188737784,1.30453401,686.03,685.54,0.97573674]
[1752188738085,1.30453401,686.03,685.45,1.218]
[1752188738282,1.30453401,686.03,685.46,0.97564234]
[1752188738584,1.30453401,686.04,685.47,0.97564234]
[1752188738788,0.25369147,686.05,685.48,0.97564234]
[1752188738985,0.25369147,686.05,685.49,0.97564234]
[1752188739182,0.25369147,686.05,685.5,0.97564234]
[1752188739383,0.25369147,686.05,685.51,0.97564234]
[1752188739582,0.25369147,686.05,685.45,1.218]
[1752188739781,0.25369147,686.05,685.46,0.97565028]
[1752188739987,0.25369147,686.05,685.47,0.97565028]
[1752188740186,0.25369147,686.05,685.48,0.97565028]
[1752188740394,0.25369147,686.05,685.49,0.97565028]
[1752188740683,0.25369147,686.05,685.5,0.97565028]
[1752188740883,0.25369147,686.05,685.51,0.97565028]
[1752188741088,0.25369147,686.05,685.52,0.97565028]
[1752188741387,0.25369147,686.05,685.53,0.97565028]
[1752188741588,0.25369147,686.05,685.45,1.218]
[1752188741785,0.25369147,686.05,685.46,0.97577457]
[1752188741986,0.25369147,686.05,685.47,0.97577457]
[1752188742190,0.25369147,686.05,685.48,0.97577457]
[1752188742402,0.25369147,686.05,685.45,1.218]
[1752188742403,1.55822548,686.05,685.49,0.97577457]
[1752188742590,1.55822548,686.05,685.5,0.97577457]
[1752188742889,1.55822548,686.05,685.51,0.97577457]
[1752188743085,1.55822548,686.05,685.45,1.218]
[1752188743288,1.55822548,686.05,685.46,0.97586179]
[1752188743490,1.55822548,686.05,685.47,0.97586179]
[1752188743813,1.55822548,686.05,685.45,1.218]
[1752188743814,1.55822548,686.05,685.48,0.97586179]
[1752188744087,1.55822548,686.05,685.49,0.97586179]
[1752188744285,1.55822548,686.05,685.5,0.97586179]
[1752188744487,1.55822548,686.05,685.51,0.97586179]
[1752188744686,1.30453401,686.04,685.45,1.218]
[1752188744884,1.30453401,686.04,685.46,0.97599495]
[1752188745187,1.30453401,686.04,685.47,0.97599495]
[1752188745387,1.30453401,686.01,685.48,0.97599495]
[1752188745586,1.30453401,686.01,685.49,0.97599495]
[1752188745788,1.30453401,686.01,685.5,0.97599495]
[1752188745988,1.30453401,686.01,685.51,0.97599495]
[1752188746186,1.30453401,686.01,685.45,1.218]
[1752188746386,1.30453401,686.0,685.46,0.97609066]
[1752188746584,1.30453401,686.0,685.47,0.97609066]
[1752188746788,1.30453401,686.0,685.48,0.97609066]
[1752188747086,1.30453401,686.0,685.49,0.97609066]
[1752188747289,1.30453401,685.98,685.5,0.97609066]
[1752188747489,1.30453401,685.98,685.45,1.218]
[1752188747686,1.30453401,685.98,685.46,0.97627788]
[1752188747888,1.30453401,685.98,685.47,0.97627788]
[1752188748192,1.30453401,685.98,685.48,0.97627788]
[1752188748390,1.30453401,685.98,685.49,0.97627788]
[1752188748594,1.30453401,685.98,685.5,0.97627788]
[1752188748893,1.30453401,685.93,685.45,1.218]
[1752188749095,1.30453401,685.93,685.46,0.97631386]
[1752188749290,1.30453401,685.93,685.47,0.97631386]
[1752188749488,1.30453401,685.93,685.48,0.97631386]
[1752188749790,1.30453401,685.93,685.45,1.218]
[1752188749989,1.30453401,685.93,685.46,0.97637507]
[1752188750192,1.30453401,685.93,685.47,0.97637507]
[1752188750490,1.30453401,685.93,685.48,0.97637507]
[1752188750693,1.30453401,685.92,685.45,1.218]
[1752188750893,1.30453401,685.92,685.46,0.9763648]
[1752188751188,1.30453401,685.92,685.47,0.9763648]
[1752188751390,1.30453401,685.92,685.45,1.218]
[1752188751705,1.30453401,685.93,685.46,0.97635492]
[1752188751991,1.30453401,685.93,685.47,0.97635492]
[1752188752189,1.30453401,685.93,685.48,0.97635492]
[1752188752493,1.30453401,685.95,685.49,0.97634553]
[1752188752693,1.30453401,685.95,685.45,1.218]
[1752188752893,1.30453401,685.95,685.46,0.97634553]
[1752188753090,1.30453401,685.95,685.47,0.97634553]
[1752188753289,1.30453401,685.95,685.48,0.97634553]
[1752188753587,1.30453401,685.95,685.49,0.97634553]
[1752188753789,1.30453401,685.95,685.45,1.218]
[1752188753988,1.30453401,685.95,685.46,0.97633689]
[1752188754188,1.30453401,685.95,685.45,1.218]
[1752188754189,1.30453401,685.95,685.47,0.97633689]
[1752188754386,1.30453401,685.95,685.45,1.218]
[1752188754387,1.30453401,685.95,685.48,0.97633689]
[1752188754593,1.30453401,685.95,685.49,0.97633689]
[1752188754795,1.30453401,685.97,685.45,1.218]
[1752188755089,1.30453401,685.97,685.46,0.97632843]
[1752188755294,1.30453401,685.97,685.47,0.97632843]
[1752188755592,1.30453401,685.97,685.48,0.97632843]
[1752188755803,1.30453401,685.97,685.49,0.97632843]
[1752188755991,1.30453401,685.99,685.5,0.97632843]
[1752188756292,1.30453401,686.0,685.45,1.218]
[1752188756490,1.30453401,686.0,685.46,0.97631211]
[1752188756692,1.30453401,686.0,685.47,0.97631211]
[1752188756989,1.30453401,686.0,685.48,0.97631211]
[1752188757190,1.30453401,686.0,685.49,0.97631211]
[1752188757394,1.30453401,686.0,685.5,0.97631211]
[1752188757594,1.30453401,686.0,685.45,1.218]
[1752188757793,1.30453401,686.0,685.46,0.9763346]
[1752188757995,1.30453401,686.0,685.47,0.9763346]
[1752188758189,1.30453401,686.0,685.48,0.9763346]
[1752188758391,1.30453401,685.99,685.49,0.9763346]
[1752188758694,1.30453401,685.99,685.5,0.9763346]
[1752188758991,1.30453401,686.0,685.51,0.9763346]
[1752188759291,1.30453401,686.01,685.45,1.218]
[1752188759490,1.30453401,686.01,685.46,0.9763806]
[1752188759691,1.30453401,686.0,685.47,0.9763806]
[1752188759890,1.30453401,686.0,685.48,0.9763806]
[1752188760094,1.30453401,686.01,685.49,0.9763806]
[1752188760394,1.30453401,686.01,685.5,0.9763806]
[1752188760695,1.30453401,686.01,685.51,0.9763806]
[1752188760895,1.30453401,686.01,685.45,1.218]
[1752188761191,1.30453401,686.02,685.46,0.9763806]
[1752188761495,1.30453401,686.02,685.47,0.9763806]
[1752188761791,1.30453401,686.02,685.48,0.9763806]
[1752188761994,0.25369147,686.05,685.45,1.218]
[1752188761995,1.30453401,686.0,685.49,0.9763806]
[1752188762195,1.30453401,686.0,685.5,0.9763806]
[1752188762396,1.30453401,686.0,685.51,0.9763806]
[1752188762595,1.30453401,686.0,685.52,0.9763806]
[1752188762792,1.30453401,685.96,685.45,1.218]
[1752188762993,1.30453401,685.96,685.46,0.97643482]
[1752188763197,1.30453401,685.96,685.47,0.97643482]
[1752188763391,1.30453401,685.96,685.48,0.97643482]
[1752188763596,1.30453401,685.96,685.49,0.97643482]
[1752188763803,1.30453401,685.96,685.5,0.97643482]
[1752188763993,1.30453401,685.97,685.51,0.97643482]
[1752188764294,0.25369147,686.05,685.23,0.98202841]
[1752188764495,0.25369147,686.05,685.24,0.97644864]
[1752188764699,0.25369147,686.05,685.25,0.97644864]
[1752188764893,0.25369147,686.05,685.26,0.97644864]
[1752188765099,0.25369147,686.05,685.27,0.97644864]
[1752188765394,0.25369147,686.05,685.28,0.97644864]
[1752188765597,0.25369147,686.05,685.29,0.97644864]
[1752188765795,0.25369147,686.05,685.3,0.97644864]
[1752188765995,0.25369147,686.05,685.31,0.97644864]
[1752188766194,0.25369147,686.05,685.32,0.97644864]
[1752188766398,0.25369147,686.05,685.33,0.97631744]
[1752188766598,1.55822548,686.05,685.34,0.97631744]
[1752188766895,1.55822548,686.05,685.35,0.97631744]
[1752188767198,0.25369147,686.05,685.36,0.97631744]
[1752188767398,0.25369147,686.05,685.37,0.97631744]
[1752188767699,0.25369147,686.05,685.38,0.97631744]
[1752188767896,0.25369147,686.05,685.39,0.97631744]
[1752188768102,0.25369147,686.05,685.4,0.97631744]
[1752188768295,0.25369147,686.05,685.41,0.97631744]
[1752188768494,0.25369147,686.05,685.42,0.97631744]
[1752188768697,1.30453401,686.02,685.43,0.97631744]
[1752188768895,0.25369147,686.05,685.44,0.97631744]
[1752188769098,0.25369147,686.05,685.45,0.97631744]
[1752188769298,0.25369147,686.05,685.46,0.97631744]
[1752188769498,0.25369147,686.05,685.47,0.97631744]
[1752188769698,0.25369147,686.05,685.48,0.97631744]
[1752188769898,0.25369147,686.05,685.49,0.97631744]
[1752188770098,0.25369147,686.05,685.5,0.97631744]
[1752188770401,0.25369147,686.05,685.51,0.97631744]
[1752188770601,0.25369147,686.05,685.52,0.97631744]
[1752188770798,0.25369147,686.05,685.53,0.97631744]
[1752188770998,0.25369147,686.05,685.54,0.97631744]
[1752188771199,0.25369147,686.05,685.55,0.97631744]
[1752188771397,0.25369147,686.05,685.56,0.97631744]
[1752188771698,0.25369147,686.05,685.57,0.97631744]
[1752188771898,0.25369147,686.05,685.58,0.97631744]
[1752188772102,0.25369147,686.05,685.59,0.97631744]
[1752188772298,0.25369147,686.05,685.14,0.98202841]
[1752188772299,0.25369147,686.05,685.6,0.97631744]
[1752188772503,0.25369147,686.05,685.61,0.97631744]
[1752188772699,0.25369147,686.05,685.62,0.97631744]
[1752188773005,0.25369147,686.05,685.63,0.97631744]
[1752188773304,0.25369147,686.05,685.14,0.98202841]
[1752188773602,0.25369147,686.05,685.15,0.97622041]
[1752188773803,0.25369147,686.05,685.16,0.97622041]
[1752188774003,0.25369147,686.05,685.17,0.97622041]
[1752188774201,0.25369147,686.05,685.18,0.97622041]
[1752188774505,0.25369147,686.05,685.19,0.97622041]
[1752188774702,0.25369147,686.05,685.2,0.97622041]
[1752188774903,0.25369147,686.05,685.21,0.97622041]
[1752188775203,0.25369147,686.05,685.22,0.97622041]
[1752188775402,0.25369147,686.05,685.23,0.97622041]
[1752188775601,0.25369147,686.05,685.24,0.97622041]
[1752188775805,0.25369147,686.05,685.25,0.97622041]
[1752188776105,1.30453401,685.9,685.26,0.97622041]
[1752188776305,1.30453401,685.9,685.27,0.97622041]
[1752188776509,1.30453401,685.9,685.28,0.97622041]
[1752188776805,1.30453401,685.9,685.29,0.97622041]
[1752188777000,1.30453401,685.9,685.3,0.97622041]
[1752188777306,1.30453401,686.23,685.31,0.97622041]
[1752188777604,0.25370996,686.15,685.32,0.97622041]
[1752188777804,0.25370996,686.15,685.33,0.97622041]
[1752188778003,0.25370996,686.15,685.34,0.97622041]
[1752188778205,0.25370996,686.15,685.35,0.97622041]
[1752188778405,0.25370996,686.15,685.36,0.97622041]
[1752188778707,0.25370996,686.15,685.37,0.97622041]
[1752188778907,0.25370996,686.15,685.38,0.97622041]
[1752188779202,0.25370996,686.15,685.39,0.97622041]
[1752188779407,0.25370996,686.15,685.4,0.97622041]
[1752188779605,0.25370996,686.15,685.41,0.97622041]
[1752188779804,0.25370996,686.15,685.42,0.97622041]
[1752188780001,0.25370996,686.15,685.43,0.97622041]
[1752188780205,0.25370996,686.15,685.44,0.97622041]
[1752188780404,0.25370996,686.15,685.45,0.97622041]
[1752188780706,0.25370996,686.15,685.46,0.97622041]
[1752188780904,0.25370996,686.15,685.47,0.97622041]
[1752188781105,0.25370996,686.15,685.48,0.97622041]
[1752188781406,0.25370996,686.15,685.49,0.97622041]
[1752188781605,0.25370996,686.15,685.09,1.30206149]
[1752188781606,0.25370996,686.15,685.5,0.97622041]
[1752188781809,0.25370996,686.15,685.29,0.98202841]
[1752188781810,0.25370996,686.15,685.51,0.97622041]
[1752188782110,0.25370996,686.15,685.52,0.97622041]
[1752188782306,0.25370996,686.15,685.53,0.97622041]
[1752188782510,0.25370996,686.15,685.54,0.97622041]
[1752188782708,0.25370996,686.15,685.55,0.97622041]
[1752188782906,0.25370996,686.15,685.56,0.97622041]
[1752188783105,0.25370996,686.15,685.57,0.97622041]
[1752188783310,0.25370996,686.15,685.58,0.97622041]
[1752188783606,0.25370996,686.15,685.0,0.25367297]
[1752188783607,0.25370996,686.15,685.59,0.97622041]
[1752188783806,0.25370996,686.15,685.3,0.98202841]
[1752188783807,0.25370996,686.15,685.6,0.97622041]
[1752188784005,0.25370996,686.15,685.61,0.97622041]
[1752188784205,0.25370996,686.15,685.62,0.97622041]
[1752188784410,0.25370996,686.15,685.63,0.97622041]
[1752188784611,0.25370996,686.15,685.64,0.97622041]
[1752188784810,0.25370996,686.15,685.65,0.97622041]
[1752188785012,0.25370996,686.15,685.66,0.97622041]
[1752188785211,0.25370996,686.15,685.67,0.97622041]
[1752188785413,0.25370996,686.15,685.68,0.97622041]
[1752188785606,0.25370996,686.15,685.31,0.9810426]
[1752188785808,0.25370996,686.15,685.32,0.97575056]
[1752188786014,0.25370996,686.15,685.36,0.9810426]
[1752188786310,1.30453401,686.33,685.38,0.9810426]
[1752188786513,0.25364431,686.27,685.39,0.97577472]
[1752188786811,0.25364431,686.27,685.4,0.97577472]
[1752188787010,0.25364431,686.27,685.41,0.97577472]
[1752188787213,0.25364431,686.27,685.42,0.97577472]
[1752188787416,0.25364431,686.27,685.43,0.97577472]
[1752188787613,0.25364431,686.27,685.44,0.97577472]
[1752188787813,0.25364431,686.27,685.45,0.97577472]
[1752188788110,0.25364431,686.27,685.46,0.97577472]
[1752188788312,0.25364431,686.27,685.47,0.97577472]
[1752188788508,1.30453401,686.37,685.48,0.97577472]
[1752188788713,1.30453401,686.5,685.49,0.97577472]
[1752188789010,0.25361104,686.36,685.5,0.97577472]
[1752188789312,0.25361104,686.36,685.51,0.97577472]
[1752188789512,1.30453401,686.65,685.52,0.97577472]
[1752188789708,0.25356946,686.45,685.53,0.97577472]
[1752188789908,0.25356946,686.45,685.54,0.97577472]
[1752188790109,0.25356946,686.45,685.55,0.97577472]
[1752188790309,0.25356946,686.45,685.56,0.97577472]
[1752188790613,0.25356946,686.45,685.0,2.20676521]
[1752188790614,0.25356946,686.45,685.57,0.97577472]
[1752188790810,0.25356946,686.45,685.58,0.97577472]
[1752188791010,0.25356946,686.45,685.59,0.97577472]
[1752188791214,0.25356946,686.45,685.6,0.97577472]
[1752188791520,0.25356946,686.45,685.61,0.97577472]
[1752188791713,0.25356946,686.45,685.62,0.97577472]
[1752188791916,0.25356946,686.45,685.63,0.97577472]
[1752188792116,0.25356946,686.45,685.64,0.97577472]
[1752188792313,0.25356946,686.45,685.65,0.97577472]
[1752188792515,0.25356946,686.45,685.66,0.97577472]
[1752188792716,0.25356946,686.45,685.67,0.97577472]
[1752188792917,0.25356946,686.45,685.68,0.97577472]
[1752188793118,0.25356946,686.45,685.69,0.97577472]
[1752188793316,0.25356946,686.45,685.7,0.97577472]
[1752188793616,0.25356946,686.45,685.71,0.97577472]
[1752188793815,0.25356946,686.45,685.72,0.97577472]
[1752188794015,0.25356946,686.45,685.73,0.97577472]
[1752188794212,0.25356946,686.45,685.74,0.97577472]
[1752188794415,0.25356946,686.45,685.75,0.97577472]
[1752188794614,0.25356946,686.45,685.76,0.97577472]
[1752188794917,0.25356946,686.45,685.77,0.97577472]
[1752188795121,0.25356946,686.45,685.78,0.97577472]
[1752188795312,0.25356946,686.45,685.79,0.97577472]
[1752188795517,0.25356946,686.45,685.8,0.97577472]
[1752188795714,0.25356946,686.45,685.81,0.97577472]
[1752188795913,0.25356946,686.45,685.56,0.97718052]
[1752188795914,0.25356946,686.45,685.82,0.97577472]
[1752188796214,0.25356946,686.45,685.83,0.97577472]
[1752188796415,0.25356946,686.45,685.84,0.97577472]
[1752188796616,0.25356946,686.45,685.85,0.97577472]
[1752188796817,0.25356946,686.45,685.86,0.97577472]
[1752188797014,0.25356946,686.45,685.87,0.97577472]
[1752188797214,0.25356946,686.45,685.88,0.97577472]
[1752188797416,1.30453401,686.64,685.89,0.97577472]
[1752188797722,0.25351405,686.57,685.9,0.97577472]
[1752188798021,1.30453401,686.69,685.91,0.97577472]
[1752188798219,0.25348358,686.71,685.92,0.97577472]
[1752188798418,0.25348358,686.71,685.93,0.97577472]
[1752188798619,0.25348358,686.71,685.71,0.97718052]
[1752188798816,0.25348358,686.71,685.72,0.97165151]
[1752188799018,0.25348358,686.71,685.73,1.94883203]
[1752188799219,0.25348358,686.71,685.74,0.97165151]
[1752188799423,0.25348358,686.71,685.75,0.97165151]
[1752188799722,0.25348358,686.71,685.76,0.97165151]
[1752188799922,0.25348358,686.71,685.77,0.97165151]
[1752188800124,0.25348358,686.71,685.78,0.97165151]
[1752188800418,0.25348358,686.71,685.79,0.97165151]
[1752188800624,0.25348358,686.71,685.8,0.97165151]
[1752188800823,0.25348358,686.71,685.81,0.97165151]
[1752188801022,0.25348358,686.71,685.82,0.97165151]
[1752188801228,0.25348358,686.71,685.83,0.97165151]
[1752188801520,0.25348358,686.71,685.84,0.97165151]
[1752188801725,0.25348358,686.71,685.85,0.97165151]
[1752188801920,0.25348358,686.71,685.86,0.97165151]
[1752188802120,0.25348358,686.71,685.87,0.97165151]
[1752188802321,0.25348358,686.71,685.88,0.97165151]
[1752188802522,0.25348358,686.71,685.89,0.97165151]
[1752188802824,0.25348358,686.71,685.9,0.97165151]
[1752188803124,0.25348358,686.71,685.91,0.97165151]
[1752188803321,0.25348358,686.71,685.92,0.97165151]
[1752188803519,0.25348358,686.71,685.93,0.97165151]
[1752188803724,0.25348358,686.71,685.94,0.97165151]
[1752188803925,0.25348358,686.71,685.95,0.97165151]
[1752188804125,0.25348358,686.71,685.96,0.97165151]
[1752188804426,0.25348358,686.71,685.97,0.97165151]
[1752188804626,0.25348358,686.71,685.98,0.97165151]
[1752188804926,0.25348358,686.71,685.99,0.97165151]
[1752188805126,0.25348358,686.71,686.0,0.97165151]
[1752188805325,0.25348358,686.71,686.01,0.97165151]
[1752188805526,0.25348358,686.71,686.02,0.97165151]
[1752188805732,0.25348358,686.71,686.03,0.97165151]
[1752188805922,0.25348358,686.71,686.04,0.97165151]
[1752188806127,0.25348358,686.71,686.05,0.97165151]
[1752188806328,0.25348358,686.71,686.06,0.97165151]
[1752188806527,0.25348358,686.71,686.07,0.97165151]
[1752188806723,0.25348358,686.71,686.08,0.97165151]
[1752188806928,0.25348358,686.71,686.09,0.97165151]
[1752188807127,0.25348358,686.71,686.1,0.97165151]
[1752188807326,0.25348358,686.71,686.11,0.97165151]
[1752188807527,0.25348358,686.71,686.12,0.97165151]
[1752188807730,0.25348358,686.71,686.13,0.97165151]
[1752188807931,0.25348358,686.71,686.14,0.97165151]
[1752188808131,0.25348358,686.71,686.15,0.97165151]
[1752188808431,0.25348358,686.71,686.16,0.97165151]
[1752188808632,0.25348358,686.71,685.71,0.97718052]
[1752188808932,0.25348358,686.71,685.72,0.96749817]
[1752188809128,0.25348358,686.71,685.73,0.96749817]
[1752188809328,0.25348358,686.71,685.74,0.96749817]
[1752188809531,0.25348358,686.71,685.75,0.96749817]
[1752188809732,0.25348358,686.71,685.76,0.9671495]
[1752188810031,0.25348358,686.71,685.77,0.9671495]
[1752188810232,0.25348358,686.71,685.78,0.9671495]
[1752188810433,0.25348358,686.71,685.79,0.9671495]
[1752188810632,0.25348358,686.71,685.8,0.9671495]
[1752188810931,0.25348358,686.71,685.81,0.9671495]
[1752188811131,0.25348358,686.71,685.69,0.97718052]
[1752188811132,0.25348358,686.71,685.82,0.9671495]
[1752188811333,0.25348358,686.71,685.83,0.9671495]
[1752188811534,0.25348358,686.71,685.84,0.9671495]
[1752188811733,0.25348358,686.71,685.85,0.9671495]
[1752188811929,0.25348358,686.71,685.86,0.9671495]
[1752188812129,0.25348358,686.71,685.87,0.9671495]
[1752188812335,0.25348358,686.71,685.88,0.9671495]
[1752188812534,0.25348358,686.71,685.89,0.9671495]
[1752188812733,0.25348358,686.71,685.9,0.9671495]
[1752188812930,0.25348358,686.71,685.91,0.9671495]
[1752188813231,0.25348358,686.71,685.69,0.97718052]
[1752188813232,0.25348358,686.71,685.92,0.9671495]
[1752188813434,0.25348358,686.71,685.69,0.97718052]
[1752188813435,1.30453401,687.26,685.93,0.9671495]
[1752188813630,0.25340144,686.9,685.94,0.9671495]
[1752188813835,0.25340144,686.9,685.95,0.9671495]
[1752188814131,0.25340144,686.9,685.96,0.9671495]
[1752188814435,1.30453401,687.3,685.97,0.9671495]
[1752188814633,0.25334056,687.15,685.98,0.9671495]
[1752188814930,0.25334056,687.15,685.99,0.9671495]
[1752188815134,0.25334056,687.15,686.0,0.9671495]
[1752188815335,0.25334056,687.15,686.01,0.9671495]
[1752188815529,0.25334056,687.15,686.02,0.9671495]
[1752188815738,0.25334056,687.15,686.03,0.9671495]
[1752188815934,0.25334056,687.15,686.04,0.9671495]
[1752188816233,0.25334056,687.15,686.05,0.9671495]
[1752188816434,0.25334056,687.15,686.06,0.9671495]
[1752188816631,0.25334056,687.15,686.07,0.9671495]
[1752188816832,0.25334056,687.15,686.08,0.9671495]
[1752188817031,0.25334056,687.15,685.2,1.168]
[1752188817032,0.25334056,687.15,686.09,0.9671495]
[1752188817233,0.25334056,687.15,686.1,0.9671495]
[1752188817433,0.25334056,687.15,686.11,0.9671495]
[1752188817636,0.25334056,687.15,686.12,0.9671495]
[1752188817836,0.25334056,687.15,686.13,0.9671495]
[1752188818037,1.30453401,687.6,686.14,0.9671495]
[1752188818242,1.30453401,687.66,686.15,0.9671495]
[1752188818438,1.30453401,687.69,686.16,0.9671495]
[1752188818631,1.30453401,687.7,686.17,0.9671495]
[1752188818835,1.30453401,687.7,686.03,0.97718052]
[1752188818836,1.30453401,687.7,686.18,0.9671495]
[1752188819132,1.30453401,687.71,686.19,0.9671495]
[1752188819337,1.30453401,687.74,686.2,0.9671495]
[1752188819535,0.25316824,687.77,686.21,0.9671495]